[Event "Early-Titled-Tuesday-Blitz-February-27-2024"]
[Site "Chess.com"]
[Date "2024.02.27"]
[Round "6"]
[White "DrCeltic"]
[Black "Chernov_Alexander_A"]
[Result "1-0"]
[WhiteElo "2595"]
[BlackElo "2358"]
[TimeControl "180+1"]
[EndTime "9:05:01 PST"]
[Termination "DrCeltic won on time"]

1. e4 {[%clk 0:02:59.6]} 1... d6 {[%clk 0:02:59.1]} 2. d4 {[%clk 0:02:59.7]}
2... Nf6 {[%clk 0:02:59.1]} 3. Nc3 {[%clk 0:02:59.9]} 3... Nbd7 {[%clk 0:02:59]}
4. Nf3 {[%clk 0:03:00.2]} 4... e5 {[%clk 0:02:59]} 5. Bc4 {[%clk 0:03:00.6]}
5... Be7 {[%clk 0:02:59]} 6. O-O {[%clk 0:02:59.6]} 6... O-O {[%clk 0:02:58.8]}
7. Re1 {[%clk 0:02:58.7]} 7... c6 {[%clk 0:02:58.5]} 8. a4 {[%clk 0:02:58.9]}
8... exd4 {[%clk 0:02:52.9]} 9. Nxd4 {[%clk 0:02:58]} 9... Ne5 {[%clk
0:02:52.6]} 10. Bf1 {[%clk 0:02:56.3]} 10... Qc7 {[%clk 0:02:51.8]} 11. h3
{[%clk 0:02:52.1]} 11... Bd7 {[%clk 0:02:49.4]} 12. f4 {[%clk 0:02:41]} 12...
Ng6 {[%clk 0:02:48]} 13. Kh1 {[%clk 0:02:39.6]} 13... Rad8 {[%clk 0:02:41.9]}
14. Qf3 {[%clk 0:02:38.8]} 14... Bc8 {[%clk 0:02:13]} 15. Be3 {[%clk 0:02:32.4]}
15... Rfe8 {[%clk 0:02:07.3]} 16. Bc4 {[%clk 0:02:25]} 16... Bf8 {[%clk
0:01:35.5]} 17. Ba2 {[%clk 0:02:18.1]} 17... b6 {[%clk 0:01:26.3]} 18. Rad1
{[%clk 0:02:15.8]} 18... a6 {[%clk 0:01:26]} 19. g4 {[%clk 0:02:08.3]} 19... c5
{[%clk 0:01:21.4]} 20. Nf5 {[%clk 0:01:59.5]} 20... Bb7 {[%clk 0:01:17.4]} 21.
Nd5 {[%clk 0:01:44.8]} 21... Bxd5 {[%clk 0:01:05.4]} 22. Bxd5 {[%clk 0:01:45.7]}
22... Nxd5 {[%clk 0:01:04.5]} 23. Rxd5 {[%clk 0:01:43.4]} 23... Ne7 {[%clk
0:00:55.5]} 24. Nxe7+ {[%clk 0:01:38.6]} 24... Qxe7 {[%clk 0:00:53.3]} 25. Bd2
{[%clk 0:01:34.6]} 25... g6 {[%clk 0:00:49.3]} 26. Bc3 {[%clk 0:01:28.7]} 26...
Bg7 {[%clk 0:00:45.2]} 27. Bxg7 {[%clk 0:01:26.8]} 27... Kxg7 {[%clk 0:00:45]}
28. c4 {[%clk 0:01:09.4]} 28... f6 {[%clk 0:00:41.2]} 29. Kg2 {[%clk 0:01:07.2]}
29... Rd7 {[%clk 0:00:22.4]} 30. Re2 {[%clk 0:01:06.4]} 30... Qe6 {[%clk
0:00:20]} 31. Qd3 {[%clk 0:01:03.3]} 31... Red8 {[%clk 0:00:14.4]} 32. Kh2
{[%clk 0:00:53.6]} 32... Re8 {[%clk 0:00:13.7]} 33. Kg3 {[%clk 0:00:39.1]} 33...
Red8 {[%clk 0:00:13.5]} 34. h4 {[%clk 0:00:39.1]} 34... Re8 {[%clk 0:00:13.4]}
35. Qc3 {[%clk 0:00:37]} 35... h5 {[%clk 0:00:11.9]} 36. f5 {[%clk 0:00:36.1]}
36... gxf5 {[%clk 0:00:08.5]} 37. Rxf5 {[%clk 0:00:29.6]} 37... hxg4 {[%clk
0:00:04.5]} 38. Ref2 {[%clk 0:00:28.9]} 38... Rf7 {[%clk 0:00:02.1]} 39. h5
{[%clk 0:00:25.1]} 39... Kh7 {[%clk 0:00:01.2]} 40. R2f4 {[%clk 0:00:20]} 1-0

[Event "Early-Titled-Tuesday-Blitz-February-27-2024"]
[Site "Chess.com"]
[Date "2024.02.27"]
[Round "6"]
[White "Aslanov_Umid"]
[Black "db-banana"]
[Result "1-0"]
[WhiteElo "2676"]
[BlackElo "2490"]
[TimeControl "180+1"]
[EndTime "9:05:02 PST"]
[Termination "Aslanov_Umid won by checkmate"]

1. e4 {[%clk 0:03:00.9]} 1... Nf6 {[%clk 0:02:59.9]} 2. e5 {[%clk 0:03:01]} 2...
Nd5 {[%clk 0:02:59.1]} 3. d4 {[%clk 0:03:01.9]} 3... d6 {[%clk 0:02:58.3]} 4. c4
{[%clk 0:03:02.7]} 4... Nb6 {[%clk 0:02:58.7]} 5. exd6 {[%clk 0:03:03.6]} 5...
cxd6 {[%clk 0:02:59.5]} 6. Nc3 {[%clk 0:03:04]} 6... g6 {[%clk 0:02:59.9]} 7. h3
{[%clk 0:03:01.7]} 7... Bg7 {[%clk 0:02:59.7]} 8. Nf3 {[%clk 0:03:02.4]} 8...
O-O {[%clk 0:03:00.3]} 9. Be2 {[%clk 0:03:02.9]} 9... e5 {[%clk 0:03:00.8]} 10.
Bg5 {[%clk 0:03:03]} 10... Qd7 {[%clk 0:02:45.3]} 11. Be3 {[%clk 0:03:01.4]}
11... Nc6 {[%clk 0:02:42.5]} 12. O-O {[%clk 0:03:00.6]} 12... d5 {[%clk
0:02:20.4]} 13. c5 {[%clk 0:02:50.6]} 13... Nc4 {[%clk 0:02:20]} 14. Bxc4 {[%clk
0:02:49.8]} 14... dxc4 {[%clk 0:02:19.1]} 15. d5 {[%clk 0:02:49.9]} 15... Ne7
{[%clk 0:02:07.9]} 16. d6 {[%clk 0:02:24.6]} 16... Nf5 {[%clk 0:01:53.3]} 17.
Nd5 {[%clk 0:02:22.9]} 17... b6 {[%clk 0:01:25.8]} 18. cxb6 {[%clk 0:02:03]}
18... Qxd6 {[%clk 0:01:19.7]} 19. Nc7 {[%clk 0:01:57.4]} 19... Bb7 {[%clk
0:00:47.2]} 20. Qxd6 {[%clk 0:01:54.8]} 20... Nxd6 {[%clk 0:00:48.1]} 21. Nxa8
{[%clk 0:01:55.2]} 21... Rxa8 {[%clk 0:00:44.6]} 22. bxa7 {[%clk 0:01:51]} 22...
Nf5 {[%clk 0:00:45.2]} 23. Bb6 {[%clk 0:01:49.3]} 23... Ne7 {[%clk 0:00:41.1]}
24. Rfd1 {[%clk 0:01:45.2]} 24... Nd5 {[%clk 0:00:28.3]} 25. Bc5 {[%clk
0:01:45.1]} 25... Bf8 {[%clk 0:00:28]} 26. Bxf8 {[%clk 0:01:31.1]} 26... Kxf8
{[%clk 0:00:28.9]} 27. Nxe5 {[%clk 0:01:31]} 27... Rxa7 {[%clk 0:00:29.3]} 28.
Nxc4 {[%clk 0:01:30.8]} 28... Ra6 {[%clk 0:00:18.4]} 29. b4 {[%clk 0:01:28.5]}
29... Nf4 {[%clk 0:00:15.1]} 30. f3 {[%clk 0:01:18.7]} 30... Re6 {[%clk
0:00:12.8]} 31. Re1 {[%clk 0:01:07.4]} 31... Rf6 {[%clk 0:00:13]} 32. Ne5 {[%clk
0:01:04.2]} 32... Kg7 {[%clk 0:00:09.8]} 33. b5 {[%clk 0:01:04.8]} 33... Rb6
{[%clk 0:00:10.1]} 34. a4 {[%clk 0:01:04.3]} 34... Bd5 {[%clk 0:00:09.5]} 35.
Rab1 {[%clk 0:00:57.2]} 35... f6 {[%clk 0:00:04.3]} 36. Nd7 {[%clk 0:00:57.7]}
36... Rb7 {[%clk 0:00:04.8]} 37. Re7+ {[%clk 0:00:55.3]} 37... Kh6 {[%clk
0:00:05.3]} 38. Rbe1 {[%clk 0:00:30.3]} 38... Ra7 {[%clk 0:00:03.5]} 39. Nc5
{[%clk 0:00:27.9]} 39... Ra5 {[%clk 0:00:03.6]} 40. Rd7 {[%clk 0:00:23.6]} 40...
Bc6 {[%clk 0:00:03.2]} 41. Rc7 {[%clk 0:00:21.2]} 41... Bxb5 {[%clk 0:00:02.5]}
42. axb5 {[%clk 0:00:20.4]} 42... Rxb5 {[%clk 0:00:03.4]} 43. Ne6 {[%clk
0:00:21]} 43... Nd3 {[%clk 0:00:02.7]} 44. Rd1 {[%clk 0:00:19.4]} 44... Ne5
{[%clk 0:00:03.2]} 45. Nf8 {[%clk 0:00:18.7]} 45... Rb2 {[%clk 0:00:02.4]} 46.
h4 {[%clk 0:00:18.2]} 46... g5 {[%clk 0:00:02.2]} 47. Rxh7# {[%clk 0:00:18.4]}
1-0

[Event "Early-Titled-Tuesday-Blitz-February-27-2024"]
[Site "Chess.com"]
[Date "2024.02.27"]
[Round "6"]
[White "GP9isback23"]
[Black "Binary010"]
[Result "0-1"]
[WhiteElo "2597"]
[BlackElo "2857"]
[TimeControl "180+1"]
[EndTime "9:05:03 PST"]
[Termination "Binary010 won by resignation"]

1. d4 {[%clk 0:02:59.8]} 1... d5 {[%clk 0:02:56.9]} 2. Nf3 {[%clk 0:03:00.1]}
2... Nf6 {[%clk 0:02:56.9]} 3. c4 {[%clk 0:02:59.5]} 3... c6 {[%clk 0:02:57.2]}
4. e3 {[%clk 0:02:59.1]} 4... Bf5 {[%clk 0:02:56.9]} 5. Bd3 {[%clk 0:02:59.2]}
5... Bxd3 {[%clk 0:02:56.4]} 6. Qxd3 {[%clk 0:03:00.1]} 6... e6 {[%clk 0:02:57]}
7. O-O {[%clk 0:03:00.3]} 7... Nbd7 {[%clk 0:02:57.3]} 8. Nc3 {[%clk 0:02:58.3]}
8... Bd6 {[%clk 0:02:57.9]} 9. e4 {[%clk 0:02:56.8]} 9... dxe4 {[%clk
0:02:58.3]} 10. Nxe4 {[%clk 0:02:57.7]} 10... Nxe4 {[%clk 0:02:58.7]} 11. Qxe4
{[%clk 0:02:58.6]} 11... Nf6 {[%clk 0:02:58.7]} 12. Qe2 {[%clk 0:02:59]} 12...
O-O {[%clk 0:02:58.1]} 13. Bg5 {[%clk 0:02:59.6]} 13... h6 {[%clk 0:02:58.4]}
14. Bh4 {[%clk 0:02:59]} 14... Be7 {[%clk 0:02:58.8]} 15. Rfd1 {[%clk
0:02:58.6]} 15... Re8 {[%clk 0:02:58.2]} 16. Ne5 {[%clk 0:02:57.8]} 16... Nd7
{[%clk 0:02:55]} 17. Bxe7 {[%clk 0:02:53.9]} 17... Qxe7 {[%clk 0:02:54.6]} 18.
Rd2 {[%clk 0:02:48]} 18... Rad8 {[%clk 0:02:51.5]} 19. Rad1 {[%clk 0:02:48.1]}
19... Nxe5 {[%clk 0:02:24.7]} 20. dxe5 {[%clk 0:02:45.1]} 20... Rxd2 {[%clk
0:02:24.7]} 21. Qxd2 {[%clk 0:02:40.3]} 21... Qc5 {[%clk 0:02:24.4]} 22. Qd4
{[%clk 0:02:37.7]} 22... Qxd4 {[%clk 0:02:15.3]} 23. Rxd4 {[%clk 0:02:37.4]}
23... Re7 {[%clk 0:02:16.2]} 24. c5 {[%clk 0:02:10.2]} 24... g5 {[%clk 0:02:05]}
25. g3 {[%clk 0:01:27.1]} 25... Kg7 {[%clk 0:02:04.2]} 26. f4 {[%clk 0:01:26.4]}
26... gxf4 {[%clk 0:01:56.9]} 27. gxf4 {[%clk 0:01:26.5]} 27... Kg6 {[%clk
0:01:46.7]} 28. Kf2 {[%clk 0:01:25.1]} 28... Kf5 {[%clk 0:01:47.4]} 29. Kf3
{[%clk 0:01:24]} 29... b6 {[%clk 0:01:48]} 30. cxb6 {[%clk 0:01:11.9]} 30...
axb6 {[%clk 0:01:48.9]} 31. Rd6 {[%clk 0:01:10]} 31... Ra7 {[%clk 0:01:25.4]}
32. Rxc6 {[%clk 0:01:08.6]} 32... Rxa2 {[%clk 0:01:22.8]} 33. Rxb6 {[%clk
0:01:08.4]} 33... Ra4 {[%clk 0:01:22.2]} 34. Rb7 {[%clk 0:00:53.4]} 34... Rxf4+
{[%clk 0:01:20.3]} 35. Ke3 {[%clk 0:00:53.9]} 35... Rh4 {[%clk 0:00:57.6]} 36.
Rxf7+ {[%clk 0:00:46.2]} 36... Kxe5 {[%clk 0:00:57.9]} 37. Kd3 {[%clk
0:00:15.5]} 37... Rxh2 {[%clk 0:00:41.8]} 38. b4 {[%clk 0:00:15.1]} 38... h5
{[%clk 0:00:41.4]} 39. Kc4 {[%clk 0:00:07.3]} 39... h4 {[%clk 0:00:34.1]} 40.
Kc5 {[%clk 0:00:06.8]} 40... h3 {[%clk 0:00:30.3]} 41. b5 {[%clk 0:00:06.7]}
41... Rc2+ {[%clk 0:00:29.6]} 42. Kb6 {[%clk 0:00:07.1]} 42... h2 {[%clk
0:00:27.1]} 43. Rh7 {[%clk 0:00:07.7]} 43... Kf4 {[%clk 0:00:19.2]} 44. Ka7
{[%clk 0:00:07.7]} 44... Kg3 {[%clk 0:00:15.8]} 45. b6 {[%clk 0:00:07.7]} 45...
Ra2+ {[%clk 0:00:16.1]} 46. Kb8 {[%clk 0:00:07.5]} 46... Ra1 {[%clk 0:00:13.2]}
47. b7 {[%clk 0:00:06]} 47... h1=Q {[%clk 0:00:13.1]} 48. Rxh1 {[%clk
0:00:06.1]} 48... Rxh1 {[%clk 0:00:13.8]} 49. Kc7 {[%clk 0:00:06.3]} 49... Rb1
{[%clk 0:00:13.8]} 0-1

[Event "Early-Titled-Tuesday-Blitz-February-27-2024"]
[Site "Chess.com"]
[Date "2024.02.27"]
[Round "6"]
[White "GoValya"]
[Black "LiadCuba"]
[Result "0-1"]
[WhiteElo "2282"]
[BlackElo "2498"]
[TimeControl "180+1"]
[EndTime "9:05:03 PST"]
[Termination "LiadCuba won on time"]

1. d4 {[%clk 0:03:00.9]} 1... d5 {[%clk 0:02:56.5]} 2. g3 {[%clk 0:03:00.1]}
2... Nf6 {[%clk 0:02:54.7]} 3. Bg2 {[%clk 0:03:00.3]} 3... e6 {[%clk 0:02:47.6]}
4. c4 {[%clk 0:02:59.8]} 4... dxc4 {[%clk 0:02:42.1]} 5. Nf3 {[%clk 0:02:58.8]}
5... c5 {[%clk 0:02:39.2]} 6. O-O {[%clk 0:02:50.2]} 6... Nc6 {[%clk 0:02:38.3]}
7. e3 {[%clk 0:02:43.4]} 7... cxd4 {[%clk 0:02:23]} 8. exd4 {[%clk 0:02:41.2]}
8... Bd7 {[%clk 0:02:08.2]} 9. Nc3 {[%clk 0:02:39.1]} 9... Be7 {[%clk 0:02:08]}
10. Qe2 {[%clk 0:02:28.5]} 10... O-O {[%clk 0:02:01.2]} 11. Qxc4 {[%clk
0:02:27.5]} 11... Rc8 {[%clk 0:02:01.6]} 12. Qe2 {[%clk 0:02:15.1]} 12... Nb4
{[%clk 0:01:55.8]} 13. Ne5 {[%clk 0:02:01.9]} 13... Bc6 {[%clk 0:01:55.7]} 14.
Nxc6 {[%clk 0:02:00.2]} 14... Nxc6 {[%clk 0:01:56.6]} 15. Be3 {[%clk 0:01:49.3]}
15... Nxd4 {[%clk 0:01:52.6]} 16. Bxd4 {[%clk 0:01:41.6]} 16... Qxd4 {[%clk
0:01:53.5]} 17. Bxb7 {[%clk 0:01:40.5]} 17... Rb8 {[%clk 0:01:44.5]} 18. Bf3
{[%clk 0:01:24.3]} 18... Ba3 {[%clk 0:01:09.2]} 19. Nb5 {[%clk 0:00:43]} 19...
Qxb2 {[%clk 0:01:08.4]} 20. Qxb2 {[%clk 0:00:42.8]} 20... Bxb2 {[%clk
0:01:08.6]} 21. Nxa7 {[%clk 0:00:33.7]} 21... Bxa1 {[%clk 0:01:06.2]} 22. Rxa1
{[%clk 0:00:34.6]} 22... Nd5 {[%clk 0:01:05.7]} 23. Nc6 {[%clk 0:00:25.7]} 23...
Rb7 {[%clk 0:01:04.5]} 24. a4 {[%clk 0:00:25.3]} 24... Rc8 {[%clk 0:00:55.4]}
25. Ne5 {[%clk 0:00:20.1]} 25... Ra7 {[%clk 0:00:48.3]} 26. a5 {[%clk
0:00:18.3]} 26... f6 {[%clk 0:00:43.4]} 27. Nd3 {[%clk 0:00:04.7]} 27... Rca8
{[%clk 0:00:40.4]} 28. Bxd5 {[%clk 0:00:02.7]} 28... exd5 {[%clk 0:00:41.3]} 29.
Nf4 {[%clk 0:00:03.1]} 29... Rxa5 {[%clk 0:00:40.3]} 30. Rd1 {[%clk 0:00:03.8]}
30... Rd8 {[%clk 0:00:33.2]} 31. Kg2 {[%clk 0:00:04.7]} 31... Kf7 {[%clk
0:00:32]} 32. h4 {[%clk 0:00:04.2]} 32... g5 {[%clk 0:00:31.3]} 33. Nd3 {[%clk
0:00:04.4]} 33... d4 {[%clk 0:00:28.8]} 34. hxg5 {[%clk 0:00:04.8]} 34... fxg5
{[%clk 0:00:29]} 35. Re1 {[%clk 0:00:04.8]} 35... Rad5 {[%clk 0:00:23.1]} 36.
Ne5+ {[%clk 0:00:04.9]} 36... Kf6 {[%clk 0:00:22]} 37. Nf3 {[%clk 0:00:05.2]}
37... h6 {[%clk 0:00:20.7]} 38. Nd2 {[%clk 0:00:05.5]} 38... Re5 {[%clk
0:00:20.3]} 39. Ra1 {[%clk 0:00:04.9]} 39... Re2 {[%clk 0:00:19.7]} 40. Ra6+
{[%clk 0:00:04.4]} 40... Re6 {[%clk 0:00:18.8]} 41. Ra2 {[%clk 0:00:04]} 41...
d3 {[%clk 0:00:18.6]} 42. f3 {[%clk 0:00:03.7]} 42... Re2+ {[%clk 0:00:18.4]}
43. Kh3 {[%clk 0:00:04.2]} 43... Rde8 {[%clk 0:00:17]} 44. Ra6+ {[%clk
0:00:03.7]} 44... R8e6 {[%clk 0:00:16.9]} 45. Rxe6+ {[%clk 0:00:02.1]} 45...
Kxe6 {[%clk 0:00:16.4]} 0-1

[Event "Early-Titled-Tuesday-Blitz-February-27-2024"]
[Site "Chess.com"]
[Date "2024.02.27"]
[Round "6"]
[White "ActorXu"]
[Black "SahibSinghKnight"]
[Result "1-0"]
[WhiteElo "2837"]
[BlackElo "2572"]
[TimeControl "180+1"]
[EndTime "9:05:06 PST"]
[Termination "ActorXu won on time"]

1. e4 {[%clk 0:03:00.9]} 1... e6 {[%clk 0:02:56.9]} 2. d3 {[%clk 0:02:59.5]}
2... d5 {[%clk 0:02:55.3]} 3. Nd2 {[%clk 0:02:59.9]} 3... Nf6 {[%clk 0:02:50.6]}
4. Ngf3 {[%clk 0:02:58.6]} 4... b6 {[%clk 0:02:50.9]} 5. g3 {[%clk 0:02:58.2]}
5... Ba6 {[%clk 0:02:43.3]} 6. e5 {[%clk 0:02:53]} 6... Nfd7 {[%clk 0:02:43]} 7.
Bg2 {[%clk 0:02:50.3]} 7... c5 {[%clk 0:02:43.2]} 8. O-O {[%clk 0:02:48.1]} 8...
Nc6 {[%clk 0:02:43.3]} 9. Re1 {[%clk 0:02:48.8]} 9... Qc7 {[%clk 0:02:42.7]} 10.
c4 {[%clk 0:02:39.3]} 10... O-O-O {[%clk 0:02:16.2]} 11. cxd5 {[%clk 0:02:34.4]}
11... exd5 {[%clk 0:02:17.1]} 12. d4 {[%clk 0:02:29.2]} 12... cxd4 {[%clk
0:02:04.8]} 13. Nb3 {[%clk 0:02:21.5]} 13... h6 {[%clk 0:01:30.2]} 14. Nbxd4
{[%clk 0:02:11.9]} 14... Nxd4 {[%clk 0:01:24.4]} 15. Nxd4 {[%clk 0:02:11.8]}
15... Nc5 {[%clk 0:01:16.5]} 16. e6 {[%clk 0:02:07.7]} 16... g5 {[%clk
0:00:39.7]} 17. b4 {[%clk 0:01:40.6]} 17... Nd3 {[%clk 0:00:34.3]} 18. Re3
{[%clk 0:01:09.2]} 18... Nxb4 {[%clk 0:00:24.8]} 19. Ba3 {[%clk 0:01:05.9]}
19... Bc5 {[%clk 0:00:04.5]} 20. Rc1 {[%clk 0:01:05.5]} 20... Bc4 {[%clk
0:00:04.3]} 21. exf7 {[%clk 0:00:58.3]} 21... Qxf7 {[%clk 0:00:02.3]} 22. Bxb4
{[%clk 0:00:51]} 22... Bxb4 {[%clk 0:00:03.2]} 23. Nc6 {[%clk 0:00:51.4]} 23...
Bc5 {[%clk 0:00:02.9]} 24. Nxd8 {[%clk 0:00:51.6]} 24... Rxd8 {[%clk 0:00:01.9]}
25. Qg4+ {[%clk 0:00:45.8]} 25... Kb8 {[%clk 0:00:01.6]} 26. Rf3 {[%clk
0:00:38.8]} 26... Qe8 {[%clk 0:00:02.1]} 27. h4 {[%clk 0:00:37.9]} 27... Be2
{[%clk 0:00:02.3]} 28. hxg5 {[%clk 0:00:37.6]} 28... Bxf3 {[%clk 0:00:02.9]} 29.
Bxf3 {[%clk 0:00:35.2]} 29... hxg5 {[%clk 0:00:03.6]} 30. Qxg5 {[%clk
0:00:35.6]} 30... Qd7 {[%clk 0:00:04.2]} 31. Rd1 {[%clk 0:00:32.1]} 31... d4
{[%clk 0:00:04.4]} 32. Qe5+ {[%clk 0:00:30.9]} 32... Qd6 {[%clk 0:00:04.3]} 33.
Qe4 {[%clk 0:00:31.3]} 33... Qd7 {[%clk 0:00:02.6]} 34. Qa8+ {[%clk 0:00:30.1]}
34... Kc7 {[%clk 0:00:03.1]} 35. Qxa7+ {[%clk 0:00:28.6]} 35... Kd6 {[%clk
0:00:02.9]} 36. Qa6 {[%clk 0:00:28]} 36... Kc7 {[%clk 0:00:02.9]} 37. Rc1 {[%clk
0:00:27.2]} 37... Rb8 {[%clk 0:00:02]} 38. a4 {[%clk 0:00:19.3]} 38... Qf5
{[%clk 0:00:02]} 39. Qa7+ {[%clk 0:00:16]} 39... Kc8 {[%clk 0:00:02.5]} 40. Re1
{[%clk 0:00:13.6]} 40... Qf8 {[%clk 0:00:01.2]} 41. Bg4+ {[%clk 0:00:13.3]} 1-0

[Event "Early-Titled-Tuesday-Blitz-February-27-2024"]
[Site "Chess.com"]
[Date "2024.02.27"]
[Round "6"]
[White "Nouali_Mohamed"]
[Black "NM_Antelacus"]
[Result "1-0"]
[WhiteElo "2545"]
[BlackElo "2255"]
[TimeControl "180+1"]
[EndTime "9:05:10 PST"]
[Termination "Nouali_Mohamed won on time"]

1. e4 {[%clk 0:02:59]} 1... c5 {[%clk 0:02:59.4]} 2. Nf3 {[%clk 0:02:57.4]} 2...
Nc6 {[%clk 0:02:59.6]} 3. d4 {[%clk 0:02:57.8]} 3... cxd4 {[%clk 0:03:00.1]} 4.
Nxd4 {[%clk 0:02:58.7]} 4... Nf6 {[%clk 0:03:00.2]} 5. Nc3 {[%clk 0:02:58.8]}
5... e5 {[%clk 0:03:00]} 6. Ndb5 {[%clk 0:02:59.2]} 6... d6 {[%clk 0:03:00.3]}
7. Bg5 {[%clk 0:02:57.5]} 7... a6 {[%clk 0:03:00.4]} 8. Na3 {[%clk 0:02:57.6]}
8... b5 {[%clk 0:02:59.8]} 9. Nd5 {[%clk 0:02:58]} 9... Be7 {[%clk 0:02:59.4]}
10. Bxf6 {[%clk 0:02:58.5]} 10... Bxf6 {[%clk 0:02:59.6]} 11. c3 {[%clk
0:02:59.4]} 11... Bg5 {[%clk 0:02:55.2]} 12. Nc2 {[%clk 0:02:59.1]} 12... Ne7
{[%clk 0:02:52.8]} 13. Nxe7 {[%clk 0:02:53.9]} 13... Qxe7 {[%clk 0:02:51.2]} 14.
Nb4 {[%clk 0:02:50.8]} 14... Be6 {[%clk 0:02:47.7]} 15. a4 {[%clk 0:02:48.9]}
15... bxa4 {[%clk 0:02:31.8]} 16. Rxa4 {[%clk 0:02:13]} 16... a5 {[%clk
0:02:13.6]} 17. Nd5 {[%clk 0:01:57.6]} 17... Qb7 {[%clk 0:02:01.9]} 18. Bb5+
{[%clk 0:01:51.2]} 18... Kf8 {[%clk 0:02:02.1]} 19. c4 {[%clk 0:01:45.6]} 19...
Bxd5 {[%clk 0:01:58.7]} 20. exd5 {[%clk 0:01:39.8]} 20... Qb6 {[%clk 0:01:50.6]}
21. b4 {[%clk 0:01:34.4]} 21... Ke7 {[%clk 0:01:34]} 22. Qa1 {[%clk 0:01:20.2]}
22... Rhc8 {[%clk 0:01:03.2]} 23. O-O {[%clk 0:01:17.1]} 23... Kf8 {[%clk
0:01:01.6]} 24. Bc6 {[%clk 0:01:08.6]} 24... Ra7 {[%clk 0:01:00.8]} 25. c5
{[%clk 0:00:51.6]} 25... dxc5 {[%clk 0:00:58]} 26. Rxa5 {[%clk 0:00:51.9]} 26...
Rxa5 {[%clk 0:00:55.2]} 27. bxa5 {[%clk 0:00:52.8]} 27... Qa6 {[%clk 0:00:38.2]}
28. Qxe5 {[%clk 0:00:52.4]} 28... Bf6 {[%clk 0:00:29.3]} 29. Qf5 {[%clk
0:00:44.2]} 29... Rd8 {[%clk 0:00:26.2]} 30. Qxh7 {[%clk 0:00:40.1]} 30... g6
{[%clk 0:00:25.5]} 31. Qh6+ {[%clk 0:00:28]} 31... Bg7 {[%clk 0:00:23.8]} 32.
Qg5 {[%clk 0:00:27.1]} 32... Qxa5 {[%clk 0:00:22.3]} 33. h4 {[%clk 0:00:24.4]}
33... Qc7 {[%clk 0:00:18.2]} 34. Re1 {[%clk 0:00:21.4]} 34... Qd6 {[%clk
0:00:16.3]} 35. h5 {[%clk 0:00:19.5]} 35... gxh5 {[%clk 0:00:15.6]} 36. Qxh5
{[%clk 0:00:19.5]} 36... Kg8 {[%clk 0:00:15.6]} 37. Re3 {[%clk 0:00:16.1]} 37...
Qf4 {[%clk 0:00:12.7]} 38. Rg3 {[%clk 0:00:13.9]} 38... Qf6 {[%clk 0:00:10.5]}
39. Qg4 {[%clk 0:00:12.2]} 39... Kf8 {[%clk 0:00:07.9]} 40. Rf3 {[%clk
0:00:11.9]} 40... Qe5 {[%clk 0:00:07.3]} 41. g3 {[%clk 0:00:11]} 41... Rd6
{[%clk 0:00:05.9]} 42. Qc8+ {[%clk 0:00:09.3]} 1-0

[Event "Early-Titled-Tuesday-Blitz-February-27-2024"]
[Site "Chess.com"]
[Date "2024.02.27"]
[Round "6"]
[White "FoggyMorning"]
[Black "stollenmonster"]
[Result "0-1"]
[WhiteElo "2642"]
[BlackElo "2887"]
[TimeControl "180+1"]
[EndTime "9:05:12 PST"]
[Termination "stollenmonster won by checkmate"]

1. e4 {[%clk 0:03:00.9]} 1... c5 {[%clk 0:03:00]} 2. Nf3 {[%clk 0:03:00.9]} 2...
Nf6 {[%clk 0:03:00.4]} 3. Nc3 {[%clk 0:02:56.6]} 3... d5 {[%clk 0:03:00.3]} 4.
Bb5+ {[%clk 0:02:57.3]} 4... Bd7 {[%clk 0:03:00.3]} 5. Bxd7+ {[%clk 0:02:32.9]}
5... Qxd7 {[%clk 0:03:01.2]} 6. d3 {[%clk 0:02:02.2]} 6... Nc6 {[%clk
0:02:59.8]} 7. exd5 {[%clk 0:01:58.7]} 7... Nxd5 {[%clk 0:02:59.6]} 8. O-O
{[%clk 0:01:57.4]} 8... g6 {[%clk 0:02:59.4]} 9. Bd2 {[%clk 0:01:55.7]} 9... Bg7
{[%clk 0:02:58.9]} 10. Nxd5 {[%clk 0:01:52.4]} 10... Qxd5 {[%clk 0:02:59.8]} 11.
Bc3 {[%clk 0:01:42.3]} 11... e5 {[%clk 0:02:59.7]} 12. Re1 {[%clk 0:01:34.9]}
12... O-O {[%clk 0:02:59.4]} 13. Nd2 {[%clk 0:01:31.4]} 13... Rfe8 {[%clk
0:02:59]} 14. Qf3 {[%clk 0:01:30.3]} 14... Qe6 {[%clk 0:02:47.9]} 15. a4 {[%clk
0:01:27.1]} 15... f5 {[%clk 0:02:44.3]} 16. Nc4 {[%clk 0:01:24.2]} 16... Rad8
{[%clk 0:02:40.5]} 17. a5 {[%clk 0:01:21.1]} 17... e4 {[%clk 0:02:38.1]} 18. Qg3
{[%clk 0:01:14]} 18... Nd4 {[%clk 0:02:35.8]} 19. Bxd4 {[%clk 0:01:09.2]} 19...
cxd4 {[%clk 0:02:35.7]} 20. b3 {[%clk 0:01:09.7]} 20... e3 {[%clk 0:02:20]} 21.
Qf3 {[%clk 0:00:41.5]} 21... f4 {[%clk 0:01:47.2]} 22. Kf1 {[%clk 0:00:30.5]}
22... Rd7 {[%clk 0:01:41.7]} 23. Re2 {[%clk 0:00:23.5]} 23... g5 {[%clk
0:01:41.2]} 24. h3 {[%clk 0:00:21]} 24... Rf7 {[%clk 0:01:35.3]} 25. Nd2 {[%clk
0:00:18.1]} 25... Qg6 {[%clk 0:01:26]} 26. Ne4 {[%clk 0:00:12.3]} 26... h5
{[%clk 0:01:25.7]} 27. Nc5 {[%clk 0:00:06.1]} 27... g4 {[%clk 0:01:25.6]} 28.
hxg4 {[%clk 0:00:04.6]} 28... hxg4 {[%clk 0:01:25.9]} 29. Qd5 {[%clk 0:00:05.5]}
29... f3 {[%clk 0:01:26.3]} 30. Ree1 {[%clk 0:00:05.3]} 30... Qh7 {[%clk
0:01:21.4]} 31. Kg1 {[%clk 0:00:03.2]} 31... g3 {[%clk 0:01:19.4]} 32. fxg3
{[%clk 0:00:01.7]} 32... f2+ {[%clk 0:01:19.6]} 33. Kf1 {[%clk 0:00:02.6]} 33...
Qh1+ {[%clk 0:01:15.8]} 34. Ke2 {[%clk 0:00:02.9]} 34... fxe1=Q+ {[%clk
0:01:16]} 35. Rxe1 {[%clk 0:00:03.2]} 35... Qh7 {[%clk 0:01:08.7]} 36. Rf1
{[%clk 0:00:03.3]} 36... Qg6 {[%clk 0:01:08.7]} 37. Rf3 {[%clk 0:00:02.7]} 37...
b6 {[%clk 0:00:53.2]} 38. Nb7 {[%clk 0:00:02.5]} 38... Bf8 {[%clk 0:00:49.3]}
39. axb6 {[%clk 0:00:02.2]} 39... axb6 {[%clk 0:00:49.3]} 40. Qc4 {[%clk
0:00:02.5]} 40... b5 {[%clk 0:00:48.2]} 41. Qd5 {[%clk 0:00:02.8]} 41... Qe6
{[%clk 0:00:42.7]} 42. Qxb5 {[%clk 0:00:02.8]} 42... Rxf3 {[%clk 0:00:39.1]} 43.
gxf3 {[%clk 0:00:03.7]} 43... Rc8 {[%clk 0:00:37.2]} 44. Qg5+ {[%clk 0:00:03.8]}
44... Bg7 {[%clk 0:00:37.2]} 45. c4 {[%clk 0:00:04.3]} 45... dxc3 {[%clk
0:00:36.8]} 46. Nc5 {[%clk 0:00:04.4]} 46... Qh6 {[%clk 0:00:20.7]} 47. Qf5
{[%clk 0:00:03.9]} 47... Re8 {[%clk 0:00:18]} 48. Qd5+ {[%clk 0:00:02.7]} 48...
Kh7 {[%clk 0:00:18.4]} 49. Kd1 {[%clk 0:00:01.9]} 49... e2+ {[%clk 0:00:18.3]}
50. Kc2 {[%clk 0:00:01.8]} 50... Qd2+ {[%clk 0:00:19.1]} 51. Kb1 {[%clk
0:00:01.9]} 51... e1=Q# {[%clk 0:00:19.3]} 0-1